Workbook

Sheet 参考１
A1: 研修ごとの年度別留学開始状況
L2: （件）
A3: 研 修 の 名 称 | H3: 留 学 期 間 | I3: 当該年度に留学を開始した件数 | L3: 総 数
I4: 平成18年度 （平成18年６月19日以降） ～ 令和元年度 | J4: 令和２年度 | K4: 令和３年度
A5: 在 外 | D5: 全府省 等研修 | E5: 人事院 | F5: 行政官長期在外研究員制度 | H5: 原則２年 | I5: =[1]R3!I5+[1]R3!J5 -> 1884 | J5: =[1]R3!K5 -> 120 | K5: 163 | L5: =SUM(I5:K5) -> 2167
E6: 文部科学省 | F6: 宇宙関係在外研究員派遣制度 | H6: １年 | I6: =[1]R3!I6+[1]R3!J6 -> 2 | J6: =[1]R3!K6 -> 0 | K6: 0 | L6: 2
F7: 原子力関係在外研究員派遣制度 | H7: １年 | I7: =[1]R3!I7+[1]R3!J7 -> 3 | J7: =[1]R3!K7 -> 1 | K7: 0 | L7: 4
D8: 自 府 省 等 研 修 | E8: 会計検査院 | F8: 海外大学院等派遣研修 | H8: 原則17か月 | I8: =[1]R3!I8+[1]R3!J8 -> 12 | J8: =[1]R3!K8 -> 1 | K8: 1 | L8: 14
E9: 警察庁 | F9: 海外調査研究 | H9: １年 | I9: =[1]R3!I9+[1]R3!J9 -> 21 | J9: =[1]R3!K9 -> 1 | K9: 3 | L9: 25
E10: 金融庁 | F10: 在外研究員制度 | H10: １年 | I10: =[1]R3!I10+[1]R3!J10 -> 53 | J10: =[1]R3!K10 -> 3 | K10: 6 | L10: 62
E11: 法務省 | F11: 検事在外研究員（米国大学院コース）派遣制度 | H11: 原則１年 | I11: =[1]R3!I11+[1]R3!J11 -> 2 | J11: =[1]R3!K11 -> 0 | K11: 0 | L11: 2
E12: 財務省 | F12: 在外研究員制度 | H12: １年又は２年 | I12: =[1]R3!I12+[1]R3!J12 -> 93 | J12: =[1]R3!K12 -> 6 | K12: 7 | L12: 106
E13: 国税庁 | F13: 在外研究員制度 | H13: 原則1年 | I13: =[1]R3!I13+[1]R3!J13 -> 48 | J13: =[1]R3!K13 -> 0 | K13: 5 | L13: 53
E14: 経済産業省 | F14: 海外調査研究員制度 | H14: 原則1年 | I14: =[1]R3!I14+[1]R3!J14 -> 35 | J14: =[1]R3!K14 -> 2 | K14: 0 | L14: 37
E15: 特許庁 | F15: 外国大学院課程履修研修 | H15: １年又は２年 | I15: =[1]R3!I15+[1]R3!J15 -> 58 | J15: 2 | K15: 4 | L15: 64
E16: 原子力規制庁 | F16: 原子力規制委員会職員長期在外研究員制度 | H16: ２年又は３年 | I16: =[1]R3!I16+[1]R3!J16 -> 4 | J16: =[1]R3!K16 -> 0 | K16: 1 | L16: 5
E17: 外務省 | F17: 在外研修 | H17: ２年又は３年 | I17: =[1]R3!I17+[1]R3!J17 -> 950 | J17: =[1]R3!K17 -> 74 | K17: 76 | L17: 1100
E18: 防衛省 | F18: 国外一般大学留学 | G18: （修士課程） | H18: １年又は２年 | I18: =[1]R3!I18+[1]R3!J18 -> 152 | J18: =[1]R3!K18 -> 12 | K18: 12 | L18: 176
G19: （博士課程） | H19: 原則３年 | I19: =[1]R3!I19+[1]R3!J19 -> 22 | J19: =[1]R3!K19 -> 3 | K19: 3 | L19: 28
E20: 裁判所 | F20: 判事補海外留学研究員制度 | H20: １年 | I20: =[1]R3!I20+[1]R3!J20 -> 14 | J20: =[1]R3!K20 -> 0 | K20: 1 | L20: 15
E21: 国立印刷局 | F21: 長期海外派遣研修 | H21: 原則２年 | I21: =[1]R3!I21+[1]R3!J21 -> 4 | J21: =[1]R3!K21 -> 0 | K21: 0 | L21: 4
D22: 小 計 | I22: =SUM(I5:I21) -> 3357 | J22: =SUM(J5:J21) -> 225 | K22: =SUM(K5:K21) -> 282 | L22: =SUM(L5:L21) -> 3864
A23: 国 内 | D23: 全府省等研修 | E23: 人事院 | F23: 行政官国内研究員制度 | G23: （修士課程コース） | H23: ２年以内 | I23: =[1]R3!I23+[1]R3!J23 -> 197 | J23: =[1]R3!K23 -> 13 | K23: 13 | L23: =SUM(I23:K23) -> 223
G24: （博士課程コース） | H24: ３年以内 | I24: =[1]R3!I24+[1]R3!J24 -> 37 | J24: =[1]R3!K24 -> 3 | K24: 4 | L24: 44
D25: 自 府 省 等 研 修 | E25: 会計検査院 | F25: 会計専門職大学院派遣研修 | H25: 原則２年 | I25: =[1]R3!I25+[1]R3!J25 -> 22 | J25: =[1]R3!K25 -> 0 | K25: 1 | L25: 23
F26: 公共政策大学院（国際プログラム）派遣研修 | H26: 原則２年 | I26: =[1]R3!I26+[1]R3!J26 -> 2 | J26: =[1]R3!K26 -> 1 | K26: 0 | L26: 3
E27: 警察庁 | F27: 情報通信職員国内大学院派遣制度 | H27: ２年 | I27: =[1]R3!I27+[1]R3!J27 -> 3 | J27: =[1]R3!K27 -> 1 | K27: 0 | L27: 4
E28: 金融庁 | F28: 国内大学院派遣制度 | H28: ２年 | I28: =[1]R3!I28+[1]R3!J28 -> 49 | J28: =[1]R3!K28 -> 5 | K28: 5 | L28: 59
E29: 財 務 省 | F29: 経済学等専門研修制度 | H29: １年又は２年 | I29: =[1]R3!I29+[1]R3!J29 -> 33 | J29: =[1]R3!K29 -> 3 | K29: 5 | L29: 41
F30: 税関研修所大学委託研修制度 | H30: １年、２年又は３年 | I30: =[1]R3!I30+[1]R3!J30 -> 89 | J30: =[1]R3!K30 -> 6 | K30: 9 | L30: 104
F31: 財務局経済学等研究員派遣制度 | H31: ２年 | I31: =[1]R3!I31+[1]R3!J31 -> 12 | J31: =[1]R3!K31 -> 2 | K31: 2 | L31: 16
E32: 国税庁 | F32: 税務大学校研究科博士前期課程受講コース | H32: 原則15か月 | I32: =[1]R3!I32+[1]R3!J32 -> 103 | J32: =[1]R3!K32 -> 10 | K32: 13 | L32: 126
E33: 文部科学省 | F33: 放射線対策行政官国内研究員(専門職大学院コース)制度 | H33: １年 | I33: =[1]R3!I33+[1]R3!J33 -> 8 | L33: 8
F34: 国内大学院派遣制度 | H34: ２年以内 | I34: =[1]R3!I34+[1]R3!J34 -> 0 | J34: =[1]R3!K34 -> 0 | K34: 1 | L34: 1
E35: 文化庁 | F35: 文化政策関係行政官国内研究員派遣制度 | H35: ２年 | I35: =[1]R3!I35+[1]R3!J35 -> 2 | J35: =[1]R3!K35 -> 0 | K35: 0 | L35: 2
E36: 農林水産省 | F36: 検査・監察部国内会計専門職大学院派遣制度 | H36: ２年以内 | I36: =[1]R3!I36+[1]R3!J36 -> 5 | J36: =[1]R3!K36 -> 0 | K36: 1 | L36: 6
F37: 国内大学院(事業構想修士)派遣制度 | H37: ２年以内 | I37: =[1]R3!I37+[1]R3!J37 -> 1 | J37: =[1]R3!K37 -> 0 | K37: 1 | L37: 2
E38: 経済産業省 | F38: 国内大学院経済等研修 | H38: ２年以内 | I38: =[1]R3!I38+[1]R3!J38 -> 13 | J38: =[1]R3!K38 -> 1 | K38: 0 | L38: 14
E39: 特許庁 | F39: 国内大学院課程履修研修 | H39: 原則１年 | I39: =[1]R3!I39+[1]R3!J39 -> 30 | J39: =[1]R3!K39 -> 1 | K39: 0 | L39: 31
E40: 国土交通省 | F40: 国内政策研究員派遣制度 | H40: ２年 | I40: =[1]R3!I40+[1]R3!J40 -> 3 | J40: =[1]R3!K40 -> 0 | K40: 0 | L40: 3
E41: 海上保安庁 | F41: 国内大学院派遣制度 | H41: 期間の定めなし | I41: =[1]R3!I41+[1]R3!J41 -> 31 | J41: =[1]R3!K41 -> 4 | K41: 3 | L41: 38
E42: 原子力規制庁 | F42: 原子力規制委員会原子力規制行政官国内研究員制度 | H42: ２年以内 | I42: =[1]R3!I42+[1]R3!J42 -> 18 | J42: =[1]R3!K42 -> 1 | K42: 0 | L42: 19
E43: 防衛省 | F43: 国内一般大学留学 | G43: （修士課程） | H43: 原則１年又は２年 | I43: =[1]R3!I43+[1]R3!J43 -> 230 | J43: =[1]R3!K43 -> 16 | K43: 16 | L43: 262
G44: （博士課程） | H44: 原則３年又は４年 | I44: =[1]R3!I44+[1]R3!J44 -> 137 | J44: =[1]R3!K44 -> 12 | K44: 18 | L44: 167
F45: 防衛大学校理工学研究科留学 | G45: （前期課程） | H45: ２年 | I45: =[1]R3!I45+[1]R3!J45 -> 636 | J45: =[1]R3!K45 -> 38 | K45: 47 | L45: 721
G46: （後期課程） | H46: ３年 | I46: =[1]R3!I46+[1]R3!J46 -> 59 | J46: =[1]R3!K46 -> 7 | K46: 4 | L46: 70
F47: 防衛大学校総合安全保障研究科留学 | G47: （前期課程） | H47: 原則２年 | I47: =[1]R3!I47+[1]R3!J47 -> 153 | J47: =[1]R3!K47 -> 7 | K47: 11 | L47: 171
G48: （後期課程） | H48: ３年 | I48: =[1]R3!I48+[1]R3!J48 -> 26 | J48: =[1]R3!K48 -> 0 | K48: 0 | L48: 26
F49: 防衛医科大学校医学研究科留学 | H49: ４年 | I49: =[1]R3!I49+[1]R3!J49 -> 275 | J49: =[1]R3!K49 -> 26 | K49: 24 | L49: 325
E50: 造幣局 | F50: 派遣研修 | H50: 期間の定めなし | I50: =[1]R3!I50+[1]R3!J50 -> 1 | J50: =[1]R3!K50 -> 0 | K50: 0 | L50: 1
E51: 製品評価技 術基盤機構 | F51: 長期派遣研修制度 | H51: 原則６か月以上２年以内 | I51: =[1]R3!I51+[1]R3!J51 -> 7 | J51: =[1]R3!K51 -> 0 | K51: 0 | L51: 7
D52: 小 計 | I52: =SUM(I23:I51) -> 2182 | J52: =SUM(J23:J51) -> 157 | K52: =SUM(K23:K51) -> 178 | L52: =SUM(L23:L51) -> 2517
A53: 合 計 | I53: =I52+I22 -> 5539 | J53: =J52+J22 -> 382 | K53: =K52+K22 -> 460 | L53: =L52+L22 -> 6381
A54: (注)１ 「研修の名称」及び「留学期間」は、年度により違いがある場合についても、令和３年度の名称及び期間で統一して表記した。
A55: ２ 「全府省等研修」とは、全府省等の職員を対象とする研修であり、「自府省等研修」とは、その所属職員を対象として実施す
A56: る研修である。
A57: ３ 文部科学省「放射線対策行政官国内研究員(専門職大学院コース）制度」は平成25年３月31日で廃止となった。
